[Event "1000GM Spring GM-A 2024"]
[Site "New York"]
[Date "2024.03.28"]
[Round "2.2"]
[White "Novik, Maxim"]
[Black "Huston, Gus"]
[Result "1-0"]
[ECO "A04"]
[WhiteElo "2415"]
[BlackElo "2401"]
[Annotator "TA"]
[PlyCount "105"]
[EventDate "2024.03.26"]
[EventType "tourn"]
[EventCountry "USA"]
[SourceTitle "playchess.com"]
[Source "ChessBase"]
[SourceQuality "1"]
[TimeControl "5400+30"]

{[%evp 15,105,6,10,6,23,0,0,20,27,0,31,29,25,17,18,34,43,33,36,36,39,28,43,36,36,36,36,36,36,36,36,36,36,36,36,36,36,36,38,39,40,36,36,36,45,45,44,47,56,30,30,30,30,30,30,30,50,50,104,83,104,104,104,103,102,83,181,141,181,181,404,285,469,469,406,478,380,458,1434,1304,1272,1370,29963,29965,29966,29966,5414,5085,29974,29975,29987,29988]} 1. Nf3 {[%emt 0:00:04]} c5 {[%emt 0:00:49]} 2. g3 {[%emt 0:00:50]} g6 {[%emt 0:00:35]} 3. Bg2 {[%emt 0:00:36]} Bg7 {[%emt 0:00:06]} 4. d4 {[%emt 0:06:45]} cxd4 {[%emt 0:00:55]} 5. Nxd4 {[%emt 0:00:01]} Nc6 {[%emt 0:00:22]} 6. Nxc6 {[%emt 0:00:10]} dxc6 {[%emt 0:06:20]} 7. Qxd8+ {[%emt 0:00:06]} Kxd8 {[%emt 0:00:03]} 8. O-O {[%emt 0:00:24]} Nf6 {[%emt 0:00:27]} 9. Rd1+ {[%emt 0:02:02]} Nd7 {[%emt 0:00:01]} 10. Na3 {[%emt 0:01:02]} Kc7 {[%emt 0:01:23]} 11. Nc4 {[%emt 0:02:41] The position is equal.} b6 {[%emt 0:05:46]} 12. e4 {[%emt 0:22:05]} Rd8 {[%emt 0:03:39]} 13. Bf4+ {[%emt 0:02:03]} e5 {[%emt 0:00:06]} 14. Be3 {[%emt 0:00:54]} Ba6 {[%emt 0:08:43]} 15. Bf1 {[%emt 0:03:19][%cal Bg2f1,Bf1c4,Bc4e6][%mdl 32]} f6 {[%emt 0:07:10]} 16. a4 {[%emt 0:06:00]} (16. Nxe5 $2 Bxf1 17. Nf7 Rf8 18. Kxf1 Rxf7 $19) 16... Bxc4 $1 {[%emt 0:26:27]} 17. Bxc4 {[%emt 0:00:01]} a5 {[%emt 0:02:50]} 18. Be6 {[%emt 0:02:23] This pair of bishops is nice.} Nc5 {[%emt 0:02:23]} 19. Bxc5 {[%emt 0:00:15]} bxc5 {[%emt 0:00:05]} 20. Kf1 {[%emt 0:00:27]} Rd4 {[%emt 0:00:49]} 21. c3 {[%emt 0:00:29]} Rd6 {[%emt 0:01:11]} 22. Rxd6 {[%emt 0:02:32]} Kxd6 $14 {[%emt 0:00:02][%mdl 4096] Endgame. KRB-KRB} 23. Bg4 {[%emt 0:03:06]} Ke7 {[%emt 0:01:14]} 24. Rd1 {[%emt 0:00:06]} Rd8 {[%emt 0:02:14] Prevents Rd7+} 25. Rxd8 {[%emt 0:00:09]} Kxd8 {[%emt 0:00:01] KB-KB} 26. Be6 {[%emt 0:01:00]} Bf8 {[%emt 0:00:14]} 27. Bg8 {[%emt 0:01:08]} Ke8 {[%emt 0:00:07]} 28. h4 {[%emt 0:03:59]} (28. Bxh7 $2 Kf7 29. b3 Kg7 30. Bxg6 Kxg6 $19) 28... h5 {[%emt 0:00:06]} 29. Ke2 {[%emt 0:00:23]} Bd6 {[%emt 0:00:03]} 30. Kd3 {[%emt 0:00:22]} Ke7 {[%emt 0:00:46]} 31. Kc4 {[%emt 0:00:17]} f5 {[%emt 0:04:33][%cal Bf6f5,Bf5f4][%mdl 32]} 32. Kd3 {[%emt 0:00:20]} f4 {[%emt 0:01:02]} 33. Bc4 {[%emt 0:00:11]} Ke8 {[%emt 0:04:14]} 34. Be6 {[%emt 0:00:49]} Be7 {[%emt 0:01:54]} 35. Ke2 {[%emt 0:02:56]} g5 {[%emt 0:01:55]} 36. g4 {[%emt 0:01:52]} gxh4 {[%emt 0:10:00] Black is on the road to losing.} (36... hxg4 $14 37. h5 (37. Bxg4 gxh4 38. c4 h3 $11) 37... Kf8) 37. gxh5 $16 {[%emt 0:00:58]} Kf8 {[%emt 0:00:20]} 38. Kf3 {[%emt 0:08:05]} Kg7 {[%emt 0:00:09]} 39. Kg4 {[%emt 0:02:35] White is more active.} Kh6 {[%emt 0:00:01]} 40. Bf7 {[%emt 0:00:02]} c4 {[%emt 0:03:07]} 41. Bxc4 $18 {[%emt 0:00:24]} h3 {[%emt 0:00:52] [#] ...h2 would now be deadly.} 42. Be2 $1 {[%emt 0:00:54]} ({Don't play} 42. Kxh3 $6 Kxh5 43. Bf7+ Kg5 $16) 42... h2 $2 {[%emt 0:01:34]} (42... Bc5 {keeps fighting.} 43. Kxh3 Kg7) 43. Bf3 {[%emt 0:00:04] Threatens to win with Kf5.} Bc5 $2 {[%emt 0:00:32]} (43... Bd6 44. Kf5 Bc7) 44. Kf5 {[%emt 0:02:40]} Bxf2 {[%emt 0:00:05]} 45. Kxe5 {[%emt 0:00:27]} Kg5 {[%emt 0:01:08]} 46. Kd6 {[%emt 0:04:50][%cal Oe4e5] [#] Prevents Bc5+. e5! is the strong threat.} Ba7 {[%emt 0:06:03]} (46... Be1 $142 47. e5 (47. Kxc6 Kh4 $18) 47... Kh4) 47. e5 {[%emt 0:04:18][%cal Be4e5,Be5e6][%mdl 32]} Bb8+ {[%emt 0:00:20]} 48. Ke6 {[%emt 0:00:04] Hoping for h6.} c5 {[%emt 0:00:19]} 49. Kd5 {[%emt 0:00:33]} Bc7 {[%emt 0:01:04]} 50. e6 {[%emt 0:00:20]} Bd8 {[%emt 0:00:08]} 51. Kxc5 {[%emt 0:01:53] Threatening mate with Kd6.} Kh4 {[%emt 0:00:37]} 52. Kd5 {[%emt 0:00:12]} Kg3 {[%emt 0:00:08]} 53. Ke4 {[%emt 0:00:02] Weighted Error Value: White=0.03 (flawless) /Black=0.50.  Mistake:       	---       	Black=5      Inaccurate:     	White=2     	Black=1      OK:         	White=19    	Black=17     Best:        	White=6     	Black=2      Strong:       	White=1     	Black=1} 1-0

[Event "1000GM Spring GM-A 2024"]
[Site "New York"]
[Date "2024.03.28"]
[Round "2.3"]
[White "Sandeep, S.."]
[Black "Bortnyk, Mykola"]
[Result "1/2-1/2"]
[ECO "E32"]
[WhiteElo "1980"]
[BlackElo "2453"]
[Annotator "RC"]
[PlyCount "221"]
[EventDate "2024.03.26"]
[EventType "tourn"]
[EventCountry "USA"]
[SourceTitle "playchess.com"]
[Source "ChessBase"]
[SourceQuality "1"]
[TimeControl "5400+30"]

1. d4 {[%emt 0:00:01]} Nf6 {[%emt 0:16:53]} 2. c4 {[%emt 0:00:07]} e6 {[%emt 0:00:34]} 3. Nc3 {[%emt 0:00:06]} Bb4 {[%emt 0:00:22]} 4. Qc2 {[%emt 0:00:08]} O-O {[%emt 0:00:30]} 5. e4 {[%emt 0:00:07]} d5 {[%emt 0:00:23]} 6. e5 {[%emt 0:00:08]} Ne4 {[%emt 0:00:05]} 7. Nf3 {[%emt 0:00:09]} c5 {[%emt 0:00:17]} 8. Bd3 {[%emt 0:00:07]} cxd4 {[%emt 0:01:25]} 9. Nxd4 {[%emt 0:00:08]} Nd7 {[%emt 0:00:39]} 10. Bf4 {[%emt 0:00:08]} Qb6 {[%emt 0:01:06]} 11. Nb3 {[%emt 0:14:06]} Bxc3+ {[%emt 0:19:30]} 12. bxc3 {[%emt 0:00:10]} f6 {[%emt 0:01:05]} 13. Be3 {[%emt 0:36:21]} Qc7 {[%emt 0:01:39]} 14. cxd5 {[%emt 0:00:16]} exd5 {[%emt 0:00:10]} 15. f3 {[%emt 0:01:44]} Qxc3+ {[%emt 0:01:34]} 16. Qxc3 {[%emt 0:00:08]} Nxc3 {[%emt 0:00:01]} 17. exf6 {[%emt 0:03:08]} gxf6 {[%emt 0:02:27]} 18. a4 {[%emt 0:05:12]} Ne5 {[%emt 0:03:57]} 19. Kd2 {[%emt 0:04:01]} d4 {[%emt 0:02:26]} 20. Bxd4 {[%emt 0:02:51]} Nxd3 {[%emt 0:00:17]} 21. Kxc3 {[%emt 0:05:25]} Bf5 {[%emt 0:00:37]} 22. g4 {[%emt 0:05:57]} Bg6 {[%emt 0:00:11]} 23. h4 {[%emt 0:00:26]} Rac8+ {[%emt 0:00:11]} 24. Kd2 {[%emt 0:00:08]} Ne5 {[%emt 0:00:14]} 25. Ke3 {[%emt 0:08:25]} Rfe8 {[%emt 0:04:21]} 26. Bxe5 {[%emt 0:02:21]} Rc3+ {[%emt 0:02:46]} 27. Kf2 {[%emt 0:00:55]} fxe5 {[%emt 0:00:36]} 28. Nd2 {[%emt 0:01:41]} e4 {[%emt 0:00:09]} 29. fxe4 {[%emt 0:02:12]} Rc2 {[%emt 0:02:09]} 30. Rhd1 {[%emt 0:02:08]} Rxe4 {[%emt 0:00:17]} 31. h5 {[%emt 0:00:24]} Be8 {[%emt 0:00:33]} 32. Rac1 {[%emt 0:04:05]} Rxc1 {[%emt 0:00:51]} 33. Rxc1 {[%emt 0:00:01]} Rxg4 {[%emt 0:00:50]} 34. Rc8 {[%emt 0:00:02]} Kf8 {[%emt 0:00:20]} 35. a5 {[%emt 0:00:44]} Ra4 {[%emt 0:02:21]} 36. Nb3 {[%emt 0:02:12]} Rb4 {[%emt 0:01:23]} 37. Nc5 {[%emt 0:00:02]} Ke7 {[%emt 0:00:55]} 38. Ra8 {[%emt 0:00:54]} a6 {[%emt 0:04:44]} 39. Ra7 {[%emt 0:00:27]} Bc6 {[%emt 0:00:18]} 40. Nxa6 {[%emt 0:00:31]} Rb2+ {[%emt 0:00:04]} 41. Kg3 {[%emt 0:00:08]} Kd6 {[%emt 0:00:21]} 42. Nb8 {[%emt 0:00:35]} Bd5 {[%emt 0:00:05]} 43. a6 {[%emt 0:02:21]} Kc7 {[%emt 0:00:01]} 44. Ra8 {[%emt 0:00:39]} b5 {[%emt 0:00:28]} 45. Ra7+ {[%emt 0:00:06]} Kxb8 {[%emt 0:00:01]} 46. Rxh7 {[%emt 0:00:02]} Rg2+ {[%emt 0:01:48]} 47. Kf4 {[%emt 0:00:38]} Rh2 {[%emt 0:00:23]} 48. h6 {[%emt 0:01:01]} Bc6 {[%emt 0:00:38]} 49. Ke5 {[%emt 0:00:48]} b4 {[%emt 0:00:06]} 50. Kd6 {[%emt 0:00:09]} Be4 {[%emt 0:03:18]} 51. Re7 {[%emt 0:00:02]} Rh4 {[%emt 0:02:57]} 52. h7 {[%emt 0:00:10]} Bxh7 {[%emt 0:00:30]} 53. Rb7+ {[%emt 0:00:02]} Ka8 {[%emt 0:00:07]} 54. Kc5 {[%emt 0:00:07]} Bd3 {[%emt 0:00:45]} 55. Rxb4 {[%emt 0:00:07]} Rh5+ {[%emt 0:00:04]} 56. Kb6 {[%emt 0:00:17]} Rh6+ {[%emt 0:00:04]} 57. Kc5 {[%emt 0:00:17]} Ka7 {[%emt 0:00:22]} 58. Kd4 {[%emt 0:00:20]} Bf1 {[%emt 0:00:10]} 59. Rb1 {[%emt 0:00:12]} Rf6 {[%emt 0:00:48]} 60. Ke5 {[%emt 0:00:10]} Rf2 {[%emt 0:00:10]} 61. Kd4 {[%emt 0:00:05]} Kxa6 {[%emt 0:00:35]} 62. Kc5 {[%emt 0:00:29]} Rf5+ {[%emt 0:00:11]} 63. Kd4 {[%emt 0:00:07]} Bb5 {[%emt 0:00:04]} 64. Re1 {[%emt 0:00:22]} Kb6 {[%emt 0:00:06]} 65. Re6+ {[%emt 0:00:03]} Bc6 {[%emt 0:29:48]} 66. Re1 {[%emt 0:00:07]} Rf4+ {[%emt 0:00:00]} 67. Ke5 {[%emt 0:00:09]} Rf8 {[%emt 0:00:00]} 68. Rb1+ {[%emt 0:00:07]} Kc7 {[%emt 0:00:00]} 69. Rg1 {[%emt 0:00:19]} Re8+ {[%emt 0:00:00]} 70. Kd4 {[%emt 0:00:02]} Kb6 {[%emt 0:00:00]} 71. Rg5 {[%emt 0:00:24]} Re4+ {[%emt 0:00:00]} 72. Kd3 {[%emt 0:00:08]} Rh4 {[%emt 0:00:00]} 73. Ke3 {[%emt 0:00:26]} Bh1 {[%emt 0:00:00]} 74. Rf5 {[%emt 0:00:29]} Kc6 {[%emt 0:00:00]} 75. Rf4 {[%emt 0:00:09]} Rh6 {[%emt 0:00:00]} 76. Kd4 {[%emt 0:00:17]} Kd6 {[%emt 0:00:00]} 77. Rf5 {[%emt 0:00:19]} Rh4+ {[%emt 0:00:00]} 78. Ke3 {[%emt 0:00:03]} Re4+ {[%emt 0:00:00]} 79. Kd3 {[%emt 0:00:08]} Re1 {[%emt 0:00:00]} 80. Rg5 {[%emt 0:00:32]} Bd5 {[%emt 0:00:00]} 81. Kd4 {[%emt 0:00:25]} Re4+ {[%emt 0:00:00]} 82. Kd3 {[%emt 0:00:04]} Ra4 {[%emt 0:00:00]} 83. Ke3 {[%emt 0:00:35]} Kc5 {[%emt 0:00:00]} 84. Rg1 {[%emt 0:00:13]} Ra8 {[%emt 0:00:00]} 85. Rg3 {[%emt 0:00:50]} Re8+ {[%emt 0:00:00]} 86. Kd3 {[%emt 0:00:09]} Bc4+ {[%emt 0:00:00]} 87. Kc3 {[%emt 0:00:19]} Rb8 {[%emt 0:00:00]} 88. Re3 {[%emt 0:00:15]} Kd5 {[%emt 0:00:00]} 89. Re7 {[%emt 0:00:29]} Rb3+ {[%emt 0:00:00]} 90. Kc2 {[%emt 0:00:32]} Rh3 {[%emt 0:00:00]} 91. Rg7 {[%emt 0:00:38]} Bd3+ {[%emt 0:00:00]} 92. Kd2 {[%emt 0:00:48]} Bf5 {[%emt 0:00:00]} 93. Ra7 {[%emt 0:00:58]} Be6 {[%emt 0:00:00]} 94. Ra4 {[%emt 0:00:56]} Ke5 {[%emt 0:00:00]} 95. Rb4 {[%emt 0:01:03]} Bf5 {[%emt 0:00:00]} 96. Ra4 {[%emt 0:01:32]} Rd3+ {[%emt 0:00:00]} 97. Ke2 {[%emt 0:01:16]} Be4 {[%emt 0:00:00]} 98. Ra7 {[%emt 0:00:45]} Rb3 {[%emt 0:00:00]} 99. Kd2 {[%emt 0:00:46]} Bc6 {[%emt 0:00:00]} 100. Ra6 {[%emt 0:02:59]} Bb5 {[%emt 0:00:00]} 101. Ra8 {[%emt 0:00:15]} Ke4 {[%emt 0:00:00]} 102. Rd8 {[%emt 0:00:36]} Bc6 {[%emt 0:00:00]} 103. Kc2 {[%emt 0:00:42]} Rh3 {[%emt 0:00:00]} 104. Rb8 {[%emt 0:01:04]} Ba4+ {[%emt 0:00:00]} 105. Kb2 {[%emt 0:00:48]} Kd3 {[%emt 0:00:00]} 106. Rd8+ {[%emt 0:01:21]} Kc4 {[%emt 0:00:00]} 107. Rc8+ {[%emt 0:00:10]} Kb4 {[%emt 0:00:00]} 108. Rb8+ {[%emt 0:00:05]} Bb5 {[%emt 0:00:00]} 109. Rc8 {[%emt 0:00:12]} Rh2+ {[%emt 0:00:00]} 110. Rc2 {[%emt 0:00:12]} Rxc2+ {[%emt 0:00:00]} 111. Kxc2 {[%emt 0:00:07]} 1/2-1/2

[Event "1000GM Spring GM-A 2024"]
[Site "New York"]
[Date "2024.03.28"]
[Round "2.4"]
[White "Zilka, Stepan"]
[Black "Mardov, Dimitar"]
[Result "1/2-1/2"]
[ECO "B45"]
[WhiteElo "2589"]
[BlackElo "2473"]
[Annotator "TA"]
[PlyCount "61"]
[EventDate "2024.03.26"]
[EventType "tourn"]
[EventCountry "USA"]
[SourceTitle "playchess.com"]
[Source "ChessBase"]
[SourceQuality "1"]
[TimeControl "5400+30"]

{[%evp 15,61,7,31,23,43,41,26,39,32,35,43,34,24,31,45,18,22,0,0,0,0,0,0,0,0,0,0,0,0,-85,0,0,0,0,0,0,0,0,0,-54,-53,-53,-54,-54,-54,-58,0,-53]} 1. e4 {[%emt 0:00:06]} c5 {[%emt 0:00:03]} 2. Nf3 {[%emt 0:00:12]} e6 {[%emt 0:00:03]} 3. d4 {[%emt 0:00:05]} cxd4 {[%emt 0:00:04]} 4. Nxd4 {[%emt 0:00:04]} Nf6 {[%emt 0:00:05]} 5. Nc3 {[%emt 0:00:05]} Nc6 {[%emt 0:00:03]} 6. Nxc6 {[%emt 0:00:23]} bxc6 {[%emt 0:00:04]} 7. e5 {[%emt 0:00:05]} Nd5 {[%emt 0:00:03]} 8. Ne4 {[%emt 0:00:05]} Bb7 {[%emt 0:00:12]} 9. Be2 {[%emt 0:02:01]} c5 {[%emt 0:00:27]} 10. O-O {[%emt 0:01:46]} Qc7 {[%emt 0:00:04]} 11. c4 {[%emt 0:08:26] Weiß hat minimalen Vorteil.} Ne3 {[%emt 0:01:35]} 12. Bxe3 {[%emt 0:02:57]} Bxe4 {[%emt 0:00:05]} 13. f4 {[%emt 0:00:51]} Be7 {[%emt 0:02:10]} 14. Bf3 {[%emt 0:00:34]} Bxf3 {[%emt 0:00:11]} 15. Rxf3 {[%emt 0:01:13]} O-O {[%emt 0:22:31]} 16. Rh3 {[%emt 0:00:04]} g6 $1 {[%emt 0:03:26] Pariert Qh5.} 17. Qe1 {[%emt 0:00:27]} f6 {[%emt 0:04:04]} 18. Bd2 {[%emt 0:00:53]} fxe5 {[%emt 0:02:36]} 19. fxe5 {[%emt 0:00:06]} Rf5 {[%emt 0:06:33]} 20. Bc3 {[%emt 0:00:07]} Raf8 {[%emt 0:01:58]} 21. Rd1 {[%emt 0:04:05]} Qc6 {[%emt 0:09:55]} 22. Rhd3 {[%emt 0:00:29] [#]} (22. Qe2 $11 {bleibt in der Remisbreite.}) 22... Rf4 {[%emt 0:05:09]} (22... Qa4 $1 $17) 23. Rxd7 $11 {[%emt 0:06:26]} Bh4 {[%emt 0:02:40]} 24. g3 $1 {[%emt 0:00:29] Und jetzt Qe2 wäre schön. Das Brett brennt.} Rf1+ {[%emt 0:04:00]} ({Viel schwächer wäre} 24... Rxc4 $6 25. Qd2 (25. gxh4 $2 {verliert.} Rg4+ $19) 25... Qf3 26. Qg2 (26. gxh4 $2 {ist ein Selbstmatt.} Rg4+) 26... Qe3+ 27. Kh1 $14) 25. Qxf1 {[%emt 0:00:05]} Rxf1+ {[%emt 0:00:06]} 26. Kxf1 {[%emt 0:00:35][%cal Of1f2] [#] Kf2! wäre nun fies.} Qf3+ {[%emt 0:00:49]} 27. Kg1 {[%emt 0:01:15]} ({Vorzuziehen ist} 27. Ke1 $1 $11) 27... Bg5 $15 {[%emt 0:02:21][%cal Rg5e3]} 28. Rd8+ $1 {[%emt 0:00:08]} Bxd8 {[%emt 0:02:06]} 29. Rxd8+ {[%emt 0:00:09]} Kg7 {[%emt 0:01:16]} 30. Rd7+ {[%emt 0:00:05]} Kg8 {[%emt 0:01:36][%mdl 1024] Schwarz hat Kompensation.} 31. Rd8+ {[%emt 0:00:25] Gewichteter Fehlerwert: Weiß=0.12 (sehr präzise) /Schwarz=0.08 (makellos) .  Fehler:       	Weiß=2     	Schwarz=1     Ungenau:       	Weiß=1     	---        OK:         	Weiß=8     	Schwarz=11    Bester:       	Weiß=2     	Schwarz=1     Stark:        	Weiß=2     	Schwarz=1} 1/2-1/2

[Event "1000GM Spring GM-A 2024"]
[Site "New York"]
[Date "2024.03.28"]
[Round "2.5"]
[White "Ostrovskiy, Aleksandr"]
[Black "Lomasov, Semyon"]
[Result "0-1"]
[ECO "C55"]
[WhiteElo "2411"]
[BlackElo "2565"]
[Annotator "TA"]
[PlyCount "74"]
[EventDate "2024.03.26"]
[EventType "tourn"]
[EventCountry "USA"]
[SourceTitle "playchess.com"]
[Source "ChessBase"]
[SourceQuality "1"]
[TimeControl "5400+30"]

{[%evp 9,74,22,33,27,29,32,34,32,53,31,40,36,27,-15,4,-71,-75,-62,-100,-122,-143,-122,-131,-143,-134,-131,-131,-152,-120,-152,-157,-147,-133,-121,-124,-249,-245,-223,-199,-243,-210,-212,-204,-213,-208,-216,-204,-195,-208,-186,-211,-229,-226,-224,-235,-241,-208,-356,-354,-365,-360,-363,-363,-436,-473,-449,-422]} 1. e4 {[%emt 0:05:56]} e5 {[%emt 0:00:50]} 2. Nf3 {[%emt 0:01:07]} Nc6 {[%emt 0:00:05]} 3. Bc4 {[%emt 0:02:37]} Nf6 {[%emt 0:01:43]} 4. d3 {[%emt 0:01:08]} h6 {[%emt 0:01:32]} 5. c3 {[%emt 0:05:31]} d6 {[%emt 0:00:46]} 6. a4 {[%emt 0:03:56]} g6 {[%emt 0:01:43]} 7. O-O {[%emt 0:02:35]} Bg7 {[%emt 0:01:00]} 8. Re1 {[%emt 0:02:29] Weiß steht etwas besser.} O-O {[%emt 0:02:59]} 9. a5 {[%emt 0:07:26]} a6 {[%emt 0:01:40]} 10. Nbd2 {[%emt 0:01:23]} b5 {[%emt 0:06:00]} 11. Bb3 {[%emt 0:14:50]} Bb7 {[%emt 0:05:07]} 12. d4 {[%emt 0:21:03]} (12. Bc2 $11) 12... exd4 $17 {[%emt 0:28:30]} 13. cxd4 {[%emt 0:01:58]} Nb4 {[%emt 0:00:29]} 14. e5 {[%emt 0:09:57]} dxe5 {[%emt 0:01:25]} 15. dxe5 {[%emt 0:07:45]} Nh5 {[%emt 0:02:23]} 16. Ne4 {[%emt 0:04:44] [#]} Qxd1 $1 {[%emt 0:11:36]} 17. Bxd1 {[%emt 0:00:02]} Nd3 {[%emt 0:00:12][%csl LRe1,LRe5] Pariert Nc5.} 18. Re3 {[%emt 0:00:10]} Rad8 {[%emt 0:00:30]} (18... Nxe5 $2 19. Nxe5 Rad8 (19... Bxe5 $2 20. Nc5 $18) 20. Bxh5 gxh5 21. f4 $18) 19. Bc2 {[%emt 0:02:13] [#]} Nhf4 {[%emt 0:01:49]} (19... Nxe5 $2 20. Nxe5 Bxe4 (20... Bxe5 $2 21. Nc5 $18) 21. Rxe4 $18) 20. Kf1 {[%emt 0:02:07]} Nxe5 {[%emt 0:02:48] Schwarz steht deutlich aktiver.} (20... Bxe5 $2 21. Nxe5 Nxe5 22. Nf6+ Kg7 23. Rxe5 $18) 21. Nxe5 {[%emt 0:01:21]} Bxe5 {[%emt 0:00:03]} 22. Nc5 {[%emt 0:00:36] Ein Fehler, der zur Niederlage führt.} (22. Re1 $17) 22... Bxg2+ $19 {[%emt 0:00:59]} 23. Kg1 {[%emt 0:00:01]} Bd6 {[%emt 0:05:02]} 24. Ne4 {[%emt 0:00:44] Und Nxd6 würde nun gewinnen.} Bxe4 {[%emt 0:00:14]} 25. Rxe4 {[%emt 0:00:06]} g5 {[%emt 0:00:17]} 26. Bxf4 {[%emt 0:00:41]} Bxf4 {[%emt 0:00:09]} (26... gxf4 27. Rd1) 27. Rd1 {[%emt 0:00:58]} Kg7 {[%emt 0:02:17]} 28. h4 {[%emt 0:00:33]} Kf6 {[%emt 0:00:29]} 29. hxg5+ {[%emt 0:00:04]} hxg5 {[%emt 0:00:02]} 30. Ree1 {[%emt 0:00:51]} Bd2 {[%emt 0:01:40]} 31. Re2 {[%emt 0:00:07]} Bb4 {[%emt 0:00:26]} 32. Rc1 {[%emt 0:00:48]} Rd2 {[%emt 0:01:23]} (32... Bxa5 33. Ra1 Bb6 34. Rxa6) 33. Bd1 {[%emt 0:00:34]} (33. Rxd2 $142 Bxd2 34. Rd1 Bxa5 35. f4) 33... Rfd8 {[%emt 0:00:37]} ({Nicht} 33... Bxa5 34. Rxd2 Bxd2 35. Rxc7 $17) 34. Rxd2 {[%emt 0:00:32]} Rxd2 {[%emt 0:20:45]} (34... Bxd2 35. Rxc7 Bxa5 36. Rc6+ Kg7 37. Bf3 $17) 35. Rc6+ {[%emt 0:00:13]} Kg7 {[%emt 0:00:00]} 36. Bh5 {[%emt 0:00:52]} Bxa5 {[%emt 0:00:00]} 37. Rxa6 {[%emt 0:00:09]} Bb6 {[%emt 0:00:00] Gewichteter Fehlerwert: Weiß=0.27 (präzise) /Schwarz=0.07 (makellos) .  Fehler:       	Weiß=3     	---        Ungenau:       	Weiß=1     	---        OK:         	Weiß=9     	Schwarz=13    Bester:       	Weiß=1     	Schwarz=2     Stark:        	---       	Schwarz=1} 0-1

[Event "1000GM Spring GM-A 2024"]
[Site "New York"]
[Date "2024.03.29"]
[Round "3.1"]
[White "Lomasov, Semyon"]
[Black "Shlyakhtenko, Robert"]
[Result "1/2-1/2"]
[ECO "B40"]
[WhiteElo "2565"]
[BlackElo "2384"]
[Annotator "TA"]
[PlyCount "30"]
[EventDate "2024.03.26"]
[EventType "tourn"]
[EventCountry "USA"]
[SourceTitle "playchess.com"]
[Source "ChessBase"]
[SourceQuality "1"]
[TimeControl "5400+30"]

{[%evp 9,30,4,10,10,6,0,9,0,0,0,-9,-9,-6,-8,0,-4,-4,0,0,0,0,0,1]} 1. e4 {[%emt 0:00:08]} c5 {[%emt 0:00:06]} 2. Nf3 {[%emt 0:00:51]} e6 {[%emt 0:00:09]} 3. b3 {[%emt 0:00:50]} a6 {[%emt 0:00:59]} 4. Bb2 {[%emt 0:00:30]} Nc6 {[%emt 0:00:31]} 5. c4 {[%emt 0:01:11]} Qc7 {[%emt 0:01:04] The position is equal.} 6. g3 {[%emt 0:00:59]} Nf6 {[%emt 0:00:15]} 7. e5 {[%emt 0:02:43]} Ng4 {[%emt 0:00:09]} 8. Qe2 {[%emt 0:00:04]} b5 {[%emt 0:00:42]} 9. Bg2 {[%emt 0:18:13]} bxc4 {[%emt 0:01:24]} 10. bxc4 {[%emt 0:04:02]} Rb8 {[%emt 0:00:11]} 11. Bc3 {[%emt 0:02:34]} Be7 {[%emt 0:03:47]} 12. O-O {[%emt 0:02:34]} O-O {[%emt 0:00:40]} 13. d3 {[%emt 0:05:05]} f6 {[%emt 0:05:21]} 14. exf6 {[%emt 0:00:26]} Bxf6 {[%emt 0:00:32]} 15. Bxf6 {[%emt 0:09:26]} Nxf6 {[%emt 0:00:59] A rather calm draw.   Weighted Error Value: White=0.01 (flawless) /Black=0.01 (flawless) .  OK:         	White=4     	Black=6} 1/2-1/2

[Event "1000GM Spring GM-A 2024"]
[Site "New York"]
[Date "2024.03.29"]
[Round "3.2"]
[White "Mardov, Dimitar"]
[Black "Ostrovskiy, Aleksandr"]
[Result "1/2-1/2"]
[ECO "D36"]
[WhiteElo "2473"]
[BlackElo "2411"]
[Annotator "TA"]
[PlyCount "53"]
[EventDate "2024.03.26"]
[EventType "tourn"]
[EventCountry "USA"]
[SourceTitle "playchess.com"]
[Source "ChessBase"]
[SourceQuality "1"]
[TimeControl "5400+30"]

{[%evp 25,53,0,18,8,8,0,6,0,25,21,20,0,11,0,0,0,0,0,0,0,0,0,0,0,0,0,0,0,0,0]} 1. d4 {[%emt 0:00:01]} d5 {[%emt 0:03:51]} 2. Nf3 {[%emt 0:00:28]} Nf6 {[%emt 0:00:06]} 3. c4 {[%emt 0:00:14]} e6 {[%emt 0:00:06]} 4. Nc3 {[%emt 0:00:26]} Nbd7 {[%emt 0:02:30]} 5. cxd5 {[%emt 0:09:14]} exd5 {[%emt 0:02:49]} 6. Bg5 {[%emt 0:02:05]} c6 {[%emt 0:05:40]} 7. e3 {[%emt 0:02:48]} h6 {[%emt 0:02:24]} 8. Bh4 {[%emt 0:02:26]} Be7 {[%emt 0:00:59]} 9. Bd3 {[%emt 0:01:41]} Ne4 {[%emt 0:01:46]} 10. Bxe7 {[%emt 0:04:08]} Qxe7 {[%emt 0:00:26]} 11. O-O {[%emt 0:01:57]} O-O {[%emt 0:02:02]} 12. Qc2 {[%emt 0:03:49]} Re8 {[%emt 0:07:35]} 13. Rab1 {[%emt 0:04:08]} a5 {[%emt 0:18:53]} 14. h3 {[%emt 0:09:02]} Ndf6 {[%emt 0:20:54]} 15. Ne5 {[%emt 0:06:51]} Nd6 {[%emt 0:04:50]} 16. Rbe1 {[%emt 0:09:48]} Be6 {[%emt 0:12:13]} 17. f3 {[%emt 0:06:31]} Rad8 {[%emt 0:04:37] The position is equal.} 18. Ne2 {[%emt 0:17:12]} Nd7 {[%emt 0:03:02]} 19. Nf4 {[%emt 0:02:17] [#] And now Bh7+ would win.} (19. Nxd7 {simplifies} Bxd7 20. e4 dxe4 21. fxe4 Nb5 22. a4) 19... Qf6 {[%emt 0:02:18]} 20. Qc3 {[%emt 0:04:57]} Bf5 {[%emt 0:02:28][%cal Rd7e5]} 21. e4 {[%emt 0:07:00]} (21. Qxa5 $2 Nxe5 22. dxe5 Rxe5 $17 (22... Qxe5 23. Qb6 $17)) 21... Bh7 {[%emt 0:00:08]} 22. Nxd5 {[%emt 0:02:39]} cxd5 {[%emt 0:00:13]} 23. Nxd7 {[%emt 0:00:04]} Rxd7 {[%emt 0:01:00]} 24. e5 {[%emt 0:00:05]} Qd8 {[%emt 0:00:29]} 25. exd6 {[%emt 0:00:48]} Rxe1 {[%emt 0:01:09]} 26. Rxe1 {[%emt 0:00:55]} Bxd3 {[%emt 0:00:14]} 27. Qxd3 {[%emt 0:00:15] An uneventful encounter.   Weighted Error Value: White=0.04 (flawless) /Black=0.05 (flawless) .  OK:         	White=6     	Black=5      Best:        	White=1     	---} 1/2-1/2